{"text_format":"1","workbook":"xlsx","n_sheets":4,"sheets":["регистрация","тест1","тест 2","источник"],"not_rendered":{"charts":0,"images":1,"macros":1,"external_links":0,"defined_names":0,"comments":0,"pivot_tables":0},"unopened":[],"bounds":{"document_bytes":16777216,"sheet_cells":100000,"rows_first":2000,"rows_last":500,"rows_between":2000,"halvings":0,"cell_chars":16384,"cell_head_chars":4096},"cells_cut":0,"cells_raw":0,"read":"whole","date_system":"1900"}

{"sheet":"регистрация","index":0,"n_rows":16,"n_cols":5,"rows_kept":16,"cut":false,"hidden":false,"merged":[]}
[]
[]
[]
[]
[]
[]
[]
[]
[]
[]
[]
[]
[]
[null,null,null,null,"фамилия"]
[null,null,null,null,"имя"]
[null,null,null,null,"класс"]

{"sheet":"тест1","index":1,"n_rows":29,"n_cols":16,"rows_kept":29,"cut":false,"hidden":false,"merged":[[21,1,24,4],[21,0,24,0],[28,1,31,4],[28,0,31,0],[0,1,3,4],[0,0,3,0],[7,1,10,4],[7,0,10,0],[14,1,17,4],[14,0,17,0]]}
[1,"К внутренней памяти относится:",null,null,null,null,null,null,null,{"$f":"IF(D6=\"оперативная память\",1,0)","v":0},null,null,"оперативная память","магнитное поле","CD-R","Флэш-память"]
[null,null,null,null,null,null,null,null,null,{"$f":"IF(E6=\"постоянная память\",1,0)","v":0},null,null,"постоянная память","неправильное отключение","DVD-RW","жесткий диск"]
[null,null,null,null,null,null,null,null,null,{"$f":"IF(F6=\"видеопамять\",1,0)","v":0},null,null,"жесткий диск","царапины","CD-RW","fllopy disc"]
[null,null,null,null,null,null,null,null,null,null,null,null,"Флэш-память","нагревание","DVD-R","CD - диск"]
[null,null,null,null,null,null,null,null,null,{"$f":"IF(D13=\"жесткий диск\",1,0)","v":0},null,null,"fllopy disc","загрезнение","CD-RV","DVD - диск"]
[null,null,null,null,null,null,null,null,null,{"$f":"IF(E13=\"флэш-память\",1,0)","v":0},null,null,"видеопамять","удары при эксплуатации","DVD-RV"]
[null,null,null,null,null,null,null,null,null,{"$f":"IF(F13=\"fllopy disc\",1,0)","v":0},null,null,"оптические диски"]
[2,"К внешней памяти относится:",null,null,null,null,null,null,null,{"$f":"IF(G13=\"оптические диски\",1,0)","v":0}]
[]
[null,null,null,null,null,null,null,null,null,{"$f":"IF(D20=\"царапины\",1,0)","v":0}]
[null,null,null,null,null,null,null,null,null,{"$f":"IF(E20=\"загрезнение\",1,0)","v":0}]
[]
[null,null,null,null,null,null,null,null,null,{"$f":"IF(D27=\"DVD-RW\",1,0)","v":0}]
[null,null,null,null,null,null,null,null,null,{"$f":"IF(E27=\"CD-RW\",1,0)","v":0}]
[3,"Опасные воздейтсвия для DVD дисков"]
[null,null,null,null,null,null,null,null,null,{"$f":"IF(D34=\"fllopy disc\",1,0)","v":0}]
[null,null,null,null,null,null,null,null,null,{"$f":"IF(E34=\"CD - диск\",1,0)","v":0}]
[null,null,null,null,null,null,null,null,null,{"$f":"IF(F34=\"DVD - диск\",1,0)","v":0}]
[null,null,null,null,null,null,null,null,null,{"$f":"IF(G34=\"Флэш-память\",1,0)","v":0}]
[null,null,null,null,null,null,null,null,null,{"$f":"IF(H34=\"жесткий диск\",1,0)","v":0}]
[null,null,null,null,null,null,null,null,null,{"$f":"SUM(J1:J20)","v":0}]
[4,"Оптические диски которые можно перезаписывать"]
[]
[]
[]
[]
[]
[]
[5,"Располжить  в порядке увеличения емкости"]

{"sheet":"тест 2","index":2,"n_rows":36,"n_cols":11,"rows_kept":36,"cut":false,"hidden":false,"merged":[[1,7,4,7],[1,1,4,1],[1,0,4,0],[1,3,4,3],[1,4,4,4],[1,6,4,6]]}
[]
[6,"Основные характеристики жестких дисков",null,7,"Выбрать высказываня относящиеся к оперативной памяти",null,8,"Выбрать высказываня относящиеся к постоянной памяти",null,"Емкость","Состоит из ячеек"]
[null,null,null,null,null,null,null,null,null,"Форм-фактор","При выключении компьютера данные стираются"]
[null,null,null,null,null,null,null,null,null,"Сокет","При выключении компьютера данные не стираются"]
[null,null,null,null,null,null,null,null,null,"Кэш-память","Во время работы хранит промежуточные данные, обрабатываемые процессором"]
[null,null,null,null,null,null,null,null,null,"Время произвольного доступа","Память только для чтения"]
[null,null,null,null,null,null,null,null,null,"Коммуникационные порты","Хранятся данные для загрузки компьютера"]
[null,null,null,null,null,null,null,null,null,"Цвет","Служит основным накопителем данных практически во всех современных ПК"]
[]
[]
[]
[]
[]
[]
[]
[]
[]
[null,null,null,null,null,null,null,{"$f":"IF(E36=25,\"Молодец\",\"\")","v":""}]
[]
[]
[]
[]
[]
[]
[]
[]
[]
[]
[]
[]
[]
[]
[null,{"$f":"IF(B8=\"Емкость\",1,0)","v":0},{"$f":"IF(E8=\"Состоит из ячеек\",1,0)","v":0},{"$f":"IF(H8=\"При выключении компьютера данные не стираются\",1,0)","v":0}]
[null,{"$f":"IF(B9=\"Форм-фактор\",1,0)","v":0},{"$f":"IF(E9=\"При выключении компьютера данные стираются\",1,0)","v":0},{"$f":"IF(H9=\"Память только для чтения\",1,0)","v":0}]
[null,{"$f":"IF(B10=\"Время произвольного доступа\",1,0)","v":0},{"$f":"IF(E10=\"Во время работы хранит промежуточные данные, обрабатываемые процессором\",1,0)","v":0},{"$f":"IF(H10=\"Хранятся данные для загрузки компьютера\",1,0)","v":0},{"$f":"SUM(B33:D35)","v":0}]
[null,null,null,null,{"$f":"тест1!J21+'тест 2'!E35","v":0}]

{"sheet":"источник","index":3,"n_rows":9,"n_cols":1,"rows_kept":9,"cut":false,"hidden":false,"merged":[]}
[]
["В работе использован макрос Павлова Н.В."]
["http://www.moi-universitet.ru/do/directions/mm/exceltest/#.Ufam_6z-hGM"]
[]
["ДК \"Новые секреты Excel для создания интерактивных дидактических материалов\""]
["http://www.moi-universitet.ru/ru/do/directions/mm/Excel2/#.UiRtFX_vXQ"]
[]
["рисунок"]
["http://pixiru.ultrahosting.com.ng/chelovek-i-kompyuter-risunki/"]